bitfinex/quotes_ETHUSD_20241130
["timestamp","ask_amount","ask_price","bid_price","bid_amount"]
[1732943763232,0.256595,3647.8,3647.5,0.20551921]
[1732943763436,0.25652825,3647.7,3647.6,0.20551921]
[1732943763923,0.80652825,3647.7,3647.6,0.20551921]
[1732943764119,0.55,3647.9,3647.6,0.20551921]
[1732943764337,0.55,3647.7,3647.4,2.74163]
[1732943764560,0.25650721,3647.6,3647.5,1.86232074]
[1732943764758,0.80650721,3647.6,3647.5,1.86232074]
[1732943765256,1.01052447,3647.6,3647.5,0.20532074]
[1732943765458,3.72470714,3647.6,3647.5,0.20532074]
[1732943765622,3.29167,3647.5,3646.8,2.74212]
[1732943765946,0.55,3647.3,3646.8,2.74212]
[1732943766151,0.25650721,3647.2,3646.8,2.74212]
[1732943766361,0.55,3647.1,3646.8,2.74212]
[1732943766557,0.55,3647.3,3646.8,2.74212]
[1732943766757,0.55,3647.1,3646.8,2.74212]
[1732943767154,0.55,3647.3,3646.8,2.74212]
[1732943767355,0.55,3647.1,3646.8,2.74212]
[1732943767593,0.55,3647.1,3646.6,1.6385]
[1732943767762,0.55,3647.3,3646.6,1.6385]
[1732943768086,3.29175,3647.3,3646.6,1.6385]
[1732943768693,0.95364868,3647.8,3646.6,1.6385]
[1732943768694,0.55,3647.1,3646.6,1.6385]
[1732943769156,0.55,3647.3,3646.6,1.6385]
[1732943769353,0.55,3647.1,3646.6,1.6385]
[1732943769857,0.55,3647.3,3646.6,1.6385]
[1732943770060,0.55,3647.1,3646.6,1.6385]
[1732943770297,0.55,3647.3,3646.6,1.6385]
[1732943770620,0.55,3647.1,3646.6,1.6385]
[1732943771059,0.55,3647.1,3646.4,0.95364868]
[1732943771060,0.55,3647.1,3646.3,0.95364868]
[1732943771389,0.55,3647.3,3646.4,0.25921487]
[1732943771576,0.55,3647.1,3646.4,0.25921487]
[1732943771781,0.55,3647.1,3646.4,1.6385]
[1732943771975,0.55,3647.3,3646.4,1.6385]
[1732943772306,0.55,3647.1,3646.4,1.6385]
[1732943772590,0.55,3647.3,3646.4,1.6385]
[1732943772795,0.55,3647.1,3646.4,1.6385]
[1732943772953,0.55,3647.1,3646.4,1.89771487]
[1732943773149,3.29189,3647.2,3646.4,1.89771487]
[1732943773350,0.55,3647.0,3646.4,1.89771487]
[1732943773584,0.9603556,3647.3,3646.4,1.89771487]
[1732943773795,0.55,3647.1,3646.4,1.6385]
[1732943773957,0.9603556,3647.3,3646.4,1.6385]
[1732943774153,0.25646811,3647.2,3646.4,1.6385]
[1732943774407,0.80646811,3647.1,3646.4,1.6385]
[1732943774579,0.9603556,3647.3,3646.4,1.6385]
[1732943774580,0.55,3646.9,3646.4,1.6385]
[1732943774754,0.55,3646.9,3646.5,0.25921487]
[1732943775090,3.79944232,3650.5,3646.5,0.25921487]
[1732943775091,0.80649183,3647.2,3646.7,1.6385]
[1732943775295,0.43771906,3647.6,3646.7,1.6385]
[1732943775495,0.66687784,3647.5,3646.7,1.6385]
[1732943775795,0.25649611,3647.4,3646.7,1.6385]
[1732943775988,0.25649611,3647.3,3646.7,1.6385]
[1732943776192,0.02733733,3647.6,3646.7,1.6385]
[1732943776376,0.6668692,3647.5,3646.7,1.6385]
[1732943776691,0.80648815,3647.4,3646.7,1.6385]
[1732943776900,0.55,3647.2,3646.7,1.6385]
[1732943777190,0.55,3647.4,3646.7,1.6385]
[1732943777353,0.55,3647.2,3646.7,1.6385]
[1732943777549,0.55,3647.2,3646.7,1.92363636]
[1732943777786,0.55,3647.4,3646.7,1.6385]
[1732943778088,0.55,3647.2,3646.7,1.6385]
[1732943778315,0.55,3647.4,3646.7,1.6385]
[1732943778474,0.55,3647.2,3646.7,1.6385]
[1732943778991,0.55,3647.4,3646.7,1.6385]
[1732943779307,0.55,3647.2,3646.7,1.6385]
[1732943779512,0.55,3647.0,3646.7,1.6385]
[1732943779710,0.55,3647.0,3645.5,3.0]
[1732943779886,0.55,3646.5,3645.2,1.6655]
[1732943780090,0.55,3646.5,3645.6,1.6655]
[1732943780091,3.29235,3646.5,3645.6,1.6655]
[1732943780292,0.55,3646.3,3645.6,1.92741487]
[1732943780724,0.55,3646.4,3645.6,1.92741487]
[1732943782921,0.55,3646.6,3645.6,1.92741487]
[1732943783215,1.50122409,3647.2,3645.8,1.6655]
[1732943783216,0.25621055,3646.5,3645.8,1.6655]
[1732943783518,0.55,3646.7,3645.8,1.6655]
[1732943783703,0.55,3646.5,3645.8,1.6655]
[1732943784017,0.55,3646.5,3645.8,1.98103208]
[1732943784220,0.55,3646.6,3645.8,1.95360635]
[1732943784514,0.55,3646.6,3645.8,1.6655]
[1732943784515,3.29234,3646.6,3645.8,1.6655]
[1732943784881,0.02733733,3646.5,3645.1,1.5748]
[1732943785222,3.29266,3646.1,3645.2,0.95364868]
[1732943785422,3.29266,3646.1,3645.1,1.5748]
[1732943785423,0.55,3646.1,3645.1,1.5748]
[1732943785597,0.55,3645.9,3645.1,1.5748]
[1732943786125,0.55,3645.9,3645.1,1.82764487]
[1732943787928,3.29264,3646.2,3645.1,1.82764487]
[1732943788120,0.55,3646.0,3645.1,1.82764487]
[1732943788315,0.25594824,3646.0,3645.1,1.82764487]
[1732943788522,0.55,3645.9,3645.3,0.95364868]
[1732943788851,0.40976559,3646.3,3645.7,1.5748]
[1732943789143,1.72277659,3647.5,3645.4,0.98107829]
[1732943789144,0.25601082,3647.1,3646.1,1.5748]
[1732943789481,0.1424667,3647.6,3646.6,1.5748]
[1732943789639,0.25603872,3647.5,3646.6,1.5748]
[1732943789842,2.76886733,3647.6,3646.6,1.5748]
[1732943790045,0.5329235,3647.5,3646.6,1.5748]
[1732943790345,0.27688673,3647.5,3646.6,1.5748]
[1732943790545,0.80605152,3647.4,3646.6,1.5748]
[1732943790919,0.55,3647.4,3646.6,1.5748]
[1732943791144,1.85202654,3648.2,3645.7,0.54990682]
[1732943791145,0.40968269,3648.0,3647.3,1.5248]
[1732943791361,0.25606033,3647.9,3647.4,0.39109964]
[1732943791670,2.74063,3648.8,3647.5,1.5248]
[1732943791959,2.9967574,3648.7,3647.5,1.5248]
[1732943792118,0.28339473,3648.6,3647.5,1.5248]
[1732943792328,2.74093,3648.4,3647.5,1.5248]
[1732943792523,2.76826733,3648.4,3647.5,1.5248]
[1732943793257,0.25595866,3648.3,3647.5,1.5248]
[1732943793465,0.55,3648.2,3647.5,1.5248]
[1732943794263,0.55,3648.4,3647.5,1.5248]
[1732943794462,2.74066,3648.8,3647.5,1.5248]
[1732943794463,0.55,3648.6,3647.5,1.88848835]
[1732943794757,0.80595866,3648.6,3647.6,0.02741041]
[1732943794960,0.55,3648.7,3647.6,0.02741041]
[1732943795165,0.80595866,3648.7,3647.5,1.88848835]
[1732943795526,0.80595866,3648.7,3647.6,0.02741042]
[1732943795722,0.80595866,3648.7,3647.5,1.88848835]
[1732943796123,3.54667866,3648.7,3647.5,1.88848835]
[1732943796323,0.55,3648.5,3647.5,1.88848835]
[1732943797355,0.55,3648.6,3647.5,1.88848835]
[1732943797859,0.80575897,3648.6,3647.5,1.88848835]
[1732943798058,3.54657897,3648.6,3647.5,1.88848835]
[1732943798263,3.29082,3648.6,3647.5,1.88848835]
[1732943799745,0.55,3648.4,3647.5,1.88848835]
[1732943800559,0.55,3648.5,3647.5,1.88848835]
[1732943802039,0.55,3648.4,3647.5,1.88848835]
[1732943802373,0.55,3648.4,3647.6,0.18884884]
[1732943802735,0.55,3648.7,3647.6,0.18884884]
[1732943802960,2.74063,3648.8,3647.6,0.18884884]
[1732943802961,0.40882377,3649.0,3647.8,1.658]
[1732943803177,0.25548211,3649.4,3648.0,1.658]
[1732943803460,0.25548211,3649.4,3648.1,1.82654047]
[1732943803759,2.76758733,3649.3,3648.1,1.82654047]
[1732943803974,2.74033,3649.2,3648.1,1.82654047]
[1732943804259,0.55,3649.1,3648.1,1.82654047]
[1732943804566,3.29047,3649.1,3648.1,1.82654047]
[1732943804866,3.29047,3649.1,3648.2,0.18265405]
[1732943805019,3.29047,3649.1,3648.2,0.21006132]
[1732943805222,3.29047,3649.1,3648.2,0.18265405]
[1732943806064,0.55,3649.1,3648.2,0.18265405]
[1732943806265,3.14453269,3649.7,3648.2,0.18265405]
[1732943806266,3.29055,3648.9,3648.2,0.18265405]
[1732943806727,3.29044,3649.1,3648.2,0.18265405]
[1732943807260,0.55,3649.1,3648.2,0.18265405]
[1732943807463,0.55,3649.1,3648.3,0.02740727]
[1732943807967,0.55,3649.0,3648.2,0.18265405]
[1732943808182,0.55,3649.0,3648.3,0.18406541]
[1732943809329,0.55,3649.3,3648.3,0.18406541]
[1732943809528,0.55,3649.1,3647.9,1.5459]
[1732943809727,0.55,3649.1,3648.1,1.5459]
[1732943809964,0.55,3649.1,3648.2,1.5459]
[1732943810124,0.55,3649.3,3648.2,1.57330551]
[1732943810325,0.55,3649.3,3648.2,1.5459]
[1732943810525,0.55,3649.3,3648.4,1.5459]
[1732943811160,2.74004,3649.6,3648.4,1.5459]
[1732943811375,2.74004,3649.6,3648.3,0.15459]
[1732943811376,2.73989,3649.8,3648.5,1.57330374]
[1732943811534,2.99519059,3649.7,3648.5,1.5459]
[1732943811740,2.73996,3649.7,3648.5,1.5459]
[1732943811952,2.74018,3649.4,3648.7,1.5459]
[1732943812168,2.11208353,3649.9,3648.7,1.5459]
[1732943812169,0.02733733,3649.3,3648.7,1.5459]
[1732943812372,2.74053,3649.0,3648.4,1.5459]
[1732943812669,0.55,3648.9,3648.4,1.5459]
[1732943814069,3.29057,3648.9,3648.4,1.5459]
[1732943815628,0.02733733,3648.8,3647.7,1.5459]
[1732943815834,0.55,3648.5,3647.7,1.5459]
[1732943816350,0.80574427,3648.5,3647.7,1.5459]
[1732943816983,3.54659427,3648.5,3647.7,1.5459]
[1732943817135,3.54659427,3648.5,3647.7,1.71937488]
[1732943817136,3.29085,3648.5,3647.7,1.71937488]
[1732943817731,3.29085,3648.5,3647.7,1.5459]
[1732943818071,0.55,3648.3,3647.7,1.5459]
[1732943818269,0.57733733,3648.3,3647.7,1.5459]
[1732943818575,0.55,3648.1,3647.7,1.5459]
[1732943818734,0.55,3648.3,3647.7,1.5459]
[1732943818936,0.55,3648.1,3647.7,1.5459]
[1732943819652,0.55,3648.2,3647.7,1.5459]
[1732943819966,0.55,3648.5,3647.7,1.5459]
[1732943820167,0.55,3648.3,3647.7,1.5459]
[1732943820470,0.55,3648.3,3647.8,1.5733106]
[1732943820471,0.55,3648.1,3647.8,1.5733106]
[1732943820673,0.256363,3648.7,3647.8,1.5733106]
[1732943820845,3.15029817,3649.2,3647.8,1.5733106]
[1732943821049,0.66626987,3649.1,3647.8,1.5459]
[1732943821370,0.2563517,3649.0,3648.0,1.5459]
[1732943821572,0.2563517,3648.9,3648.0,1.5459]
[1732943821730,0.2563517,3648.8,3648.0,1.5459]
[1732943821939,0.40991817,3649.1,3648.2,1.5459]
[1732943822149,2.74015,3649.5,3647.9,0.15459]
[1732943822150,0.25639099,3649.0,3648.4,1.5459]
[1732943822485,0.80639099,3648.9,3648.4,1.5459]
[1732943822774,0.55,3648.7,3648.6,1.5459]
[1732943823169,0.55,3649.0,3648.6,1.5459]
[1732943823396,0.25638636,3648.9,3648.7,0.0274052]
[1732943823568,0.40991817,3649.5,3648.8,1.70323052]
[1732943823766,0.66630801,3649.4,3648.8,1.5459]
[1732943823966,0.25638984,3649.3,3648.8,1.5459]
[1732943824175,0.25638984,3649.2,3648.9,0.02740256]
[1732943824362,0.40991817,3649.5,3648.9,0.02740256]
[1732943824565,0.25634138,3649.4,3648.8,1.5459]
[1732943824777,0.80634138,3649.3,3648.8,1.5459]
[1732943824980,0.25634138,3649.2,3648.8,1.5459]
[1732943825176,0.55,3649.0,3648.8,1.5459]
[1732943825506,0.55,3649.5,3648.8,1.70049]
[1732943825795,0.55,3649.5,3648.8,1.5459]
[1732943825796,0.55,3649.3,3648.8,1.5459]
[1732943826004,0.25631539,3649.2,3648.8,1.5459]
[1732943826297,0.55,3649.6,3648.8,1.5459]
[1732943826600,0.25628406,3649.5,3648.8,1.5459]
[1732943826899,0.80628406,3649.4,3648.8,1.5459]
[1732943827201,0.55,3649.2,3648.8,1.5459]
[1732943827508,0.55,3649.2,3648.8,1.70049]
[1732943827658,0.55,3649.5,3648.8,1.70049]
[1732943827860,0.55,3649.3,3648.8,1.70049]
[1732943828296,0.55,3649.6,3648.8,1.70049]
[1732943828502,0.55,3649.4,3648.8,1.70049]
[1732943828898,0.55,3649.7,3649.0,1.5556]
[1732943829196,0.41009606,3649.9,3649.0,1.5556]
[1732943829197,0.80620432,3649.8,3649.1,1.5556]
[1732943829406,0.55,3649.8,3649.1,1.5556]
[1732943829696,0.55,3650.1,3649.1,1.5556]
[1732943829908,0.55,3649.9,3649.1,1.5556]
[1732943830072,0.25612147,3649.8,3649.1,1.5556]
[1732943830275,0.25607367,3649.8,3649.1,1.5556]
[1732943830472,0.55,3649.7,3649.1,1.75556394]
[1732943830896,0.55,3650.1,3649.1,1.75556394]
[1732943831210,0.55,3649.9,3649.1,1.58299904]
[1732943831369,0.25607104,3650.2,3649.2,1.5556]
[1732943831569,0.25607104,3650.1,3649.2,1.5556]
[1732943831787,0.25607104,3650.0,3649.2,1.5556]
[1732943831994,0.40979435,3650.5,3649.8,2.11208353]
[1732943832308,0.25585309,3650.7,3649.9,1.79420214]
[1732943832524,4.85051353,3651.8,3649.9,1.79420214]
[1732943832525,0.25585309,3651.0,3650.3,2.11208353]
[1732943832808,0.25581144,3651.7,3650.5,1.5556]
[1732943832998,0.25581144,3651.9,3650.5,1.5556]
[1732943833194,2.73823,3652.0,3650.5,1.5556]
[1732943833510,2.73823,3652.0,3650.7,1.5556]
[1732943834005,2.73807,3652.2,3650.7,1.58298593]
[1732943834208,2.73831,3651.9,3650.7,1.5556]
[1732943834370,0.55,3651.8,3650.7,1.5556]
[1732943834914,0.53528206,3652.7,3651.0,2.11208353]
[1732943835205,2.73785,3652.5,3651.2,1.5556]
[1732943835582,8.98,3653.1,3651.1,0.23859075]
[1732943835583,2.73772,3652.7,3651.4,1.5556]
[1732943836982,2.73766,3652.8,3651.6,1.5556]
[1732943837483,2.6486265,3653.2,3651.6,1.5556]
[1732943837484,2.7377,3652.7,3651.6,1.5556]
[1732943838288,2.6486265,3653.2,3651.6,1.5556]
[1732943838289,2.73756,3652.9,3651.6,1.5556]
[1732943838492,2.73756,3652.9,3651.7,1.73853876]
[1732943838831,0.14221935,3653.3,3651.7,1.73853876]
[1732943838832,0.55,3652.8,3651.7,1.73853876]
[1732943839029,0.14221935,3653.3,3651.7,1.71116]
[1732943839192,0.55,3652.9,3651.7,1.71116]
[1732943839393,2.73764,3652.8,3651.9,1.5556]
[1732943839720,0.55,3652.6,3651.9,1.5556]
[1732943841123,2.73775,3652.7,3651.9,1.5556]
[1732943841124,0.55,3652.4,3651.9,1.5556]
[1732943841426,0.55,3652.6,3651.9,1.5556]
[1732943841627,0.55,3652.8,3651.9,1.5556]
[1732943841802,0.02733733,3652.7,3651.9,1.72854537]
[1732943842002,0.55,3652.5,3651.9,1.72854537]
[1732943842403,2.73787,3652.5,3651.9,1.72854537]
[1732943842623,0.55,3652.4,3651.9,1.72854537]
[1732943842921,0.55,3652.4,3651.2,0.58584201]
[1732943843126,0.55,3652.4,3651.0,2.64721175]
[1732943844728,0.55,3652.6,3651.0,2.64721175]
[1732943844932,3.28781,3652.6,3651.1,0.02737927]
[1732943845503,3.28781,3652.6,3651.0,2.64721175]
[1732943845837,3.28781,3652.6,3651.1,1.5307]
[1732943846011,3.28781,3652.6,3651.3,1.5307]
[1732943847622,0.55,3652.3,3651.3,1.5307]
[1732943848427,3.28779,3652.6,3651.3,1.5307]
[1732943849144,3.28778,3652.6,3651.3,1.5307]
[1732943849432,0.55,3652.4,3651.3,1.5307]
[1732943849598,3.28771,3652.7,3651.5,1.507]
[1732943849805,3.28761,3652.9,3651.5,1.507]
[1732943851435,0.55,3652.9,3651.5,1.507]
[1732943851605,3.28749,3653.0,3651.5,1.507]
[1732943853028,0.55,3653.1,3651.7,1.6632]
[1732943853349,0.55,3653.1,3651.9,1.6632]
[1732943853497,2.73718,3653.4,3652.1,1.6632]
[1732943853498,0.55,3653.3,3652.1,1.6632]
[1732943853703,0.55,3653.2,3652.3,1.6632]
[1732943854505,0.55,3653.1,3652.3,1.6632]
[1732943855205,0.55,3653.1,3652.4,0.02737525]
[1732943855411,0.55,3653.1,3652.3,1.6632]
[1732943855620,0.55,3653.1,3652.3,1.82952]
[1732943855798,0.55,3653.3,3652.3,1.82952]
[1732943855999,0.55,3653.4,3652.3,1.82952]
[1732943856506,2.7372,3653.4,3652.3,1.82952]
[1732943856796,0.55,3653.3,3652.3,1.82952]
[1732943857110,0.55,3653.3,3652.4,0.182952]
[1732943857720,0.55,3653.3,3652.5,1.6632]
[1732943858913,0.55,3653.2,3652.5,1.6632]
[1732943859392,2.73719,3653.4,3652.5,1.6632]
[1732943859720,0.55,3653.3,3652.5,1.6632]
[1732943859918,0.55,3653.3,3652.5,1.8478152]
[1732943860297,0.55,3653.2,3652.5,1.8478152]
[1732943860496,0.55,3653.6,3652.6,0.02737155]
[1732943860740,0.25511189,3653.7,3652.7,1.6632]
[1732943860957,0.25510068,3653.9,3652.9,1.6632]
[1732943861250,2.73666,3654.1,3652.9,1.6632]
[1732943861560,0.66358144,3654.0,3653.1,1.6632]
[1732943861854,0.25542235,3653.9,3653.3,1.6632]
[1732943862155,3.14459909,3654.4,3653.3,1.6632]
[1732943862457,0.25579184,3654.3,3653.4,1.6905656]
[1732943862628,0.25579184,3654.2,3653.4,1.6905656]
[1732943862817,0.4090329,3654.5,3653.4,1.6905656]
[1732943863016,0.25564211,3654.4,3653.4,1.6905656]
[1732943863214,0.408712,3654.7,3653.6,1.6632]
[1732943863420,0.25547323,3654.6,3653.6,1.69056427]
[1732943863656,0.25547323,3654.5,3653.6,1.69056427]
[1732943863949,0.55,3654.6,3653.6,1.69056427]
[1732943864152,0.25547456,3654.5,3653.6,1.69056427]
[1732943864359,0.55,3654.6,3653.8,1.6632]
[1732943864657,0.55,3654.4,3653.8,1.6632]
[1732943865163,0.55,3654.7,3653.8,1.6632]
[1732943865450,0.55,3654.5,3653.8,1.6632]
[1732943865817,0.55,3654.8,3653.8,1.6632]
[1732943866016,0.55,3654.6,3653.9,0.18491621]
[1732943866766,3.28607,3654.9,3653.9,0.18491621]
[1732943866916,0.55,3654.7,3654.0,1.5863]
[1732943867360,0.55,3654.4,3654.0,1.5863]
[1732943867650,3.28644,3654.4,3654.0,1.5863]
[1732943868768,3.28634,3654.6,3654.0,1.5863]
[1732943868926,0.55,3654.4,3654.0,1.5863]
[1732943869127,0.55,3654.4,3654.0,1.74493]
[1732943869328,0.55,3654.7,3654.0,1.74493]
[1732943869574,0.55,3654.5,3654.0,1.74493]
[1732943869947,0.80489292,3654.7,3654.0,1.74493]
[1732943870133,0.55,3654.7,3654.0,1.74493]
[1732943870335,0.40782867,3655.0,3654.1,0.174493]
[1732943870544,0.25483685,3654.9,3654.1,0.174493]
[1732943870866,0.25483685,3654.8,3654.1,0.174493]
[1732943871068,2.73606,3654.9,3654.1,0.174493]
[1732943871237,0.25483167,3654.8,3654.1,0.174493]
[1732943871442,2.7361,3654.9,3654.2,0.1760793]
[1732943871766,0.55,3654.7,3653.4,2.11208353]
[1732943871985,3.28622,3654.7,3652.8,0.84644777]
[1732943872269,3.28637,3654.5,3652.9,0.02736105]
[1732943872467,3.28637,3654.5,3652.8,0.87381079]
[1732943872644,3.28637,3654.5,3652.9,0.60858943]
[1732943873159,0.55,3654.6,3652.9,0.60858943]
[1732943873358,3.0,3655.4,3653.5,2.11208353]
[1732943873359,0.40773054,3655.2,3653.5,2.11208353]
[1732943873565,3.28599,3655.0,3653.5,2.11208353]
[1732943873745,0.55,3654.8,3653.5,2.11208353]
[1732943873947,0.55,3654.8,3653.6,0.26863119]
[1732943874253,0.55,3654.9,3653.6,0.26863119]
[1732943874647,0.55,3654.9,3653.7,1.5863]
[1732943874869,0.80479434,3654.9,3653.7,1.5863]
[1732943875177,0.55,3654.9,3653.7,1.5863]
[1732943875380,0.55,3654.9,3653.9,1.5863]
[1732943876254,2.99031611,3655.6,3653.9,1.61366035]
[1732943876454,0.25478611,3655.5,3653.9,1.61366035]
[1732943876697,0.25478611,3655.4,3653.9,1.61366035]
[1732943876894,0.25478611,3655.5,3653.9,1.61366035]
[1732943877099,0.25478036,3655.4,3654.1,1.5863]
[1732943877301,0.25478036,3655.4,3654.3,1.5863]
[1732943877594,0.55,3655.3,3654.3,1.5863]
[1732943878187,0.80479216,3655.3,3654.3,1.5863]
[1732943878358,0.55,3655.3,3654.3,1.5863]
[1732943878562,0.55,3655.3,3654.5,1.5863]
[1732943879083,0.55,3655.1,3654.5,1.5863]
[1732943879289,0.55,3654.6,3654.5,1.5863]
[1732943879705,0.55,3655.1,3654.5,1.5863]
[1732943879866,3.2861,3654.9,3654.5,1.5863]
[1732943880705,3.2861,3654.9,3653.4,0.54686814]
[1732943880706,2.73625,3654.7,3653.5,1.5137]
[1732943881003,0.55,3654.4,3653.5,1.5137]
[1732943881360,0.55,3654.5,3653.5,1.5137]
[1732943881561,2.73614,3654.8,3653.5,1.5137]
[1732943881562,0.55,3654.8,3653.5,1.5137]
[1732943881761,0.55,3654.3,3653.5,1.5137]
[1732943882006,0.55,3654.3,3653.5,1.66507]
[1732943883709,0.55,3654.5,3653.5,1.66507]
[1732943883874,2.73628,3654.6,3653.5,1.66507]
[1732943884275,0.55,3654.8,3653.5,1.66507]
[1732943884473,2.73628,3654.6,3653.5,1.66507]
[1732943884817,0.55,3654.5,3653.7,1.5137]
[1732943887698,3.28616,3654.8,3653.9,1.635]
[1732943887892,2.73686,3653.9,3653.5,1.635]
[1732943888109,2.73686,3653.9,3652.0,5.27]
[1732943888110,3.2871,3653.5,3652.4,1.635]
[1732943888419,3.2871,3653.5,3652.5,2.00970835]
[1732943888727,2.73723,3653.4,3652.5,2.00970835]
[1732943889018,0.55,3653.1,3652.5,2.00970835]
[1732943889222,0.55,3653.3,3652.5,1.635]
[1732943889421,0.55,3653.5,3652.7,1.635]
[1732943889577,0.55,3653.3,3652.8,0.02737255]
[1732943889779,0.55,3653.3,3652.9,1.635]
[1732943890219,0.55,3653.6,3652.9,1.635]
[1732943890382,3.14604681,3654.0,3653.1,1.635]
[1732943890383,0.55,3653.9,3653.1,1.635]
[1732943890585,0.25580592,3653.8,3653.2,0.02736844]
[1732943890909,0.55,3653.5,3653.1,1.635]
[1732943891523,0.80581474,3653.7,3653.1,1.635]
[1732943891725,0.55,3653.7,3653.1,1.635]
[1732943892423,3.28689,3653.8,3653.1,1.635]
[1732943892793,0.55,3653.6,3653.1,1.635]
[1732943893340,0.80572312,3653.8,3653.1,1.635]
[1732943893496,2.73708,3653.6,3653.1,1.635]
[1732943893692,0.55,3653.2,3652.1,1.635]
[1732943894229,3.28717,3653.4,3652.3,1.635]
[1732943894727,0.55,3653.2,3652.4,1.635]
[1732943895435,3.36505931,3653.6,3652.6,1.635]
[1732943895436,0.55,3653.4,3652.6,1.635]
[1732943895602,0.55,3653.4,3652.7,0.02737241]
[1732943896018,0.55,3653.5,3652.8,1.635]
[1732943896334,0.55,3653.5,3652.9,0.02737242]
[1732943896535,3.28711,3653.5,3652.8,1.635]
[1732943896735,3.28711,3653.5,3652.9,0.02737242]
[1732943897239,0.55,3653.5,3653.0,1.635]
[1732943897539,2.73685,3653.9,3653.0,1.80123724]
[1732943897829,2.73685,3653.9,3653.0,1.635]
[1732943898474,1.6169,3654.4,3653.1,1.6623682]
[1732943898631,2.73663,3654.2,3653.1,1.6623682]
[1732943898831,2.73665,3654.1,3653.1,1.6623682]
[1732943899031,2.73681,3653.9,3653.1,1.635]
[1732943899840,0.55,3653.8,3653.1,1.635]
[1732943900737,0.55,3654.0,3653.1,1.635]
[1732943901068,3.28678,3654.0,3653.1,1.635]
[1732943901278,0.55,3653.8,3653.1,1.635]
[1732943902080,0.55,3653.5,3653.1,1.635]
[1732943902636,0.55,3653.4,3653.1,1.635]
[1732943903174,3.28718,3653.4,3653.1,1.635]
[1732943903343,0.55,3653.1,3652.1,1.635]
[1732943903546,0.55,3652.9,3652.1,1.635]
[1732943903746,0.55,3652.9,3652.2,0.1635]
[1732943905570,0.55,3652.7,3652.1,1.635]
[1732943905781,0.55,3652.6,3652.1,1.635]
[1732943905936,0.55,3652.4,3651.4,1.5071]
[1732943906140,2.73785,3652.5,3651.4,1.5071]
[1732943906141,0.55,3652.2,3651.4,1.5071]
[1732943906440,0.55,3652.2,3651.5,0.15071]
[1732943906660,0.55,3652.1,3651.5,0.15071]
[1732943906870,3.28817,3652.1,3651.5,0.15071]
[1732943908182,4.33703,3652.4,3651.5,0.15071]
[1732943908183,0.55,3652.3,3651.5,0.15071]
[1732943908385,0.55,3652.1,3651.5,0.15071]
[1732943908676,3.28815,3652.1,3651.5,0.15071]
[1732943909879,2.738,3652.3,3651.4,1.5071]
[1732943909880,0.55,3651.7,3651.4,1.5071]
[1732943910744,3.28843,3651.8,3650.5,1.52]
[1732943910956,2.2091,3651.8,3650.5,1.52]
[1732943911160,0.55,3651.8,3650.5,1.52]
[1732943911467,0.55,3651.8,3650.7,1.52]
[1732943911693,0.55,3651.8,3650.9,1.52]
[1732943913065,0.55,3651.8,3651.0,0.02738363]
[1732943913595,0.55,3651.8,3650.9,1.52]
[1732943914270,0.55,3651.8,3651.0,0.02738364]
[1732943914891,0.55,3651.8,3650.9,1.52]
[1732943915092,0.55,3651.0,3649.3,1.52]
[1732943915299,0.55,3651.0,3649.5,1.52]
[1732943915590,0.55,3651.3,3649.7,1.52]
[1732943915798,1.6591,3651.5,3649.9,1.52]
[1732943915954,0.55,3651.6,3650.1,1.52]
[1732943916155,0.55,3651.6,3650.3,1.52]
[1732943916398,0.55,3651.6,3650.5,1.52]
[1732943916603,0.55,3651.6,3650.6,0.0273867]
[1732943917099,0.55,3651.6,3650.5,1.52]
[1732943917257,0.55,3651.3,3650.5,1.52]
[1732943917658,0.328849,3651.5,3650.5,1.52]
[1732943917659,0.55,3651.4,3650.6,0.02738714]
[1732943917955,0.55,3651.5,3650.6,0.02738714]
[1732943918311,2.73824,3652.0,3650.7,1.52]
[1732943918460,0.55,3651.8,3650.8,0.02738426]
[1732943918665,0.55,3651.8,3650.9,0.15473843]
[1732943919573,0.55,3651.8,3650.7,0.77971599]
[1732943919887,1.6591,3653.2,3651.5,2.11208353]
[1732943920057,1.6591,3653.2,3651.6,0.02737562]
[1732943920259,1.6591,3653.5,3651.9,2.11208353]
[1732943920570,2.73684,3653.9,3652.0,0.23858044]
[1732943920975,1.6591,3654.0,3652.0,0.23858044]
[1732943921152,0.14445043,3654.3,3652.0,0.23858044]
[1732943921153,2.7365,3654.3,3652.4,2.11208353]
[1732943921351,2.7365,3654.3,3652.5,0.02736767]
[1732943922458,2.73643,3654.4,3652.4,2.67331053]
[1732943922695,2.73643,3654.4,3652.5,1.54736704]
[1732943922882,2.11208353,3654.0,3652.5,1.52]
[1732943923087,2.73725,3653.3,3652.5,1.52]
[1732943923284,2.73705,3653.6,3652.5,1.52]
[1732943923593,0.55,3653.7,3652.5,1.52]
[1732943923968,3.28701,3653.7,3652.5,1.52]
[1732943924174,0.55,3653.5,3652.6,0.02737126]
[1732943926100,4.3956,3654.3,3652.6,0.02737126]
[1732943926400,4.3956,3654.3,3652.7,1.5963]
[1732943926584,2.73658,3654.2,3652.8,0.02736792]
[1732943926968,1.6591,3654.3,3652.8,0.02736792]
[1732943927171,0.439554,3654.2,3652.9,0.16236679]
[1732943928220,0.439554,3654.2,3653.0,1.5963]
[1732943928567,0.55,3654.1,3653.0,1.5963]
[1732943933611,0.55,3654.1,3653.0,1.62366595]